[Event "ROU-ch Women 2019"]
[Site "Olanesti"]
[Date "2019.03.09"]
[Round "8.19"]
[White "Cosman, Andreea-Marioara"]
[Black "Cosma, Elena-Luminita"]
[Result "1/2-1/2"]
[ECO "D45"]
[WhiteElo "2191"]
[BlackElo "2324"]
[Annotator "NA"]
[PlyCount "86"]
[EventDate "2019.03.02"]
[EventType "swiss"]
[EventCountry "ROU"]
[SourceTitle "playchess.com"]
[Source "ChessBase"]
[SourceQuality "1"]
[TimeControl "40/5400+30:1800+30"]

1. d4 {[%emt 0:00:05]} d5 {[%emt 0:00:00]} 2. c4 {[%emt 0:00:05]} e6 {[%emt 0:00:00]} 3. Nc3 {[%emt 0:00:08]} c6 {[%emt 0:00:00]} 4. Nf3 {[%emt 0:00:44]} Nf6 {[%emt 0:00:00]} 5. e3 {[%emt 0:00:10]} Nbd7 {[%emt 0:00:00]} 6. Qc2 {[%emt 0:00:06]} Bd6 {[%emt 0:00:04]} 7. b3 {[%emt 0:00:52]} O-O {[%emt 0:00:14]} 8. Be2 {[%emt 0:00:19]} e5 {[%emt 0:00:24]} 9. cxd5 {[%emt 0:00:06]} Nxd5 {[%emt 0:00:26]} 10. Nxd5 {[%emt 0:05:19]} cxd5 {[%emt 0:00:04]} 11. dxe5 {[%emt 0:00:05]} Nxe5 {[%emt 0:00:07]} 12. Bb2 {[%emt 0:00:02]} Bb4+ {[%emt 0:04:25]} 13. Kf1 {[%emt 0:00:49]} Nxf3 {[%emt 0:05:37]} 14. Bxf3 {[%emt 0:00:06]} Be6 {[%emt 0:00:06]} 15. h4 {[%emt 0:04:05]} Qa5 {[%emt 0:12:36]} 16. g3 {[%emt 0:24:02]} Rac8 {[%emt 0:02:03]} 17. Qd1 {[%emt 0:06:58]} Bc3 {[%emt 0:05:19]} 18. Bxc3 {[%emt 0:00:14]} Rxc3 {[%emt 0:00:04]} 19. Kg2 {[%emt 0:00:13]} Rfc8 {[%emt 0:00:11]} 20. Qd4 {[%emt 0:03:48]} Rc2 {[%emt 0:07:40]} 21. Rhd1 {[%emt 0:02:14]} Rxa2 {[%emt 0:26:31]} 22. Rxa2 {[%emt 0:05:36]} Qxa2 {[%emt 0:01:10]} 23. Bxd5 {[%emt 0:04:31]} Rd8 {[%emt 0:01:01]} 24. Qc5 {[%emt 0:23:12]} Bxd5+ {[%emt 0:08:53]} 25. Rxd5 {[%emt 0:00:36]} Rf8 {[%emt 0:00:03]} 26. Qc4 {[%emt 0:02:05]} h6 {[%emt 0:04:02]} 27. Rd7 {[%emt 0:03:55]} b6 {[%emt 0:00:10]} 28. Qa4 {[%emt 0:05:10]} Qxa4 {[%emt 0:02:18]} 29. bxa4 {[%emt 0:00:05]} a5 {[%emt 0:00:01]} 30. Rb7 {[%emt 0:00:08]} Rc8 {[%emt 0:00:04]} 31. Rxb6 {[%emt 0:00:05]} Rc4 {[%emt 0:00:15]} 32. Rb8+ {[%emt 0:00:07]} Kh7 {[%emt 0:00:06]} 33. h5 {[%emt 0:01:28]} g6 {[%emt 0:06:50]} 34. Rb7 {[%emt 0:02:38]} Kg7 {[%emt 0:00:06]} 35. hxg6 {[%emt 0:00:26]} Kxg6 {[%emt 0:00:06]} 36. f4 {[%emt 0:02:20]} Rxa4 {[%emt 0:00:33]} 37. Ra7 {[%emt 0:00:16]} Ra1 {[%emt 0:05:45]} 38. Kf3 {[%emt 0:01:46]} a4 {[%emt 0:00:09]} 39. Ra6+ {[%emt 0:01:39]} Kg7 {[%emt 0:00:15]} 40. Kg4 {[%emt 0:00:00]} a3 {[%emt 0:00:00]} 41. Kf5 {[%emt 0:06:21]} a2 {[%emt 0:04:33]} 42. g4 {[%emt 0:03:26]} Re1 {[%emt 0:03:56]} 43. Rxa2 {[%emt 0:00:48]} Rxe3 {Ke4} 1/2-1/2

[Event "ROU-ch Women 2019"]
[Site "Olanesti"]
[Date "2019.03.09"]
[Round "8.20"]
[White "Sandu, Mihaela"]
[Black "Morea, Georgiana-Steluta"]
[Result "1-0"]
[ECO "B43"]
[WhiteElo "2294"]
[BlackElo "1885"]
[Annotator "NA"]
[PlyCount "109"]
[EventDate "2019.03.02"]
[EventType "swiss"]
[EventCountry "ROU"]
[SourceTitle "playchess.com"]
[Source "ChessBase"]
[SourceQuality "1"]
[TimeControl "40/5400+30:1800+30"]

1. e4 {[%emt 0:01:05]} c5 {[%emt 0:00:00]} 2. Nf3 {[%emt 0:00:04]} e6 {[%emt 0:00:05]} 3. d4 {[%emt 0:00:08]} cxd4 {[%emt 0:00:15]} 4. Nxd4 {[%emt 0:00:03]} a6 {[%emt 0:00:05]} 5. Nc3 {[%emt 0:00:13]} Qc7 {[%emt 0:00:57]} 6. Bd3 {[%emt 0:00:16]} Nf6 {[%emt 0:00:41]} 7. Qe2 {[%emt 0:03:03]} d6 {[%emt 0:00:58]} 8. a4 {[%emt 0:08:30]} Nbd7 {[%emt 0:01:10]} 9. O-O {[%emt 0:01:39]} b6 {[%emt 0:05:10]} 10. Bd2 {[%emt 0:00:44]} Bb7 {[%emt 0:01:38]} 11. f4 {[%emt 0:00:42]} Nc5 {[%emt 0:02:02]} 12. b4 {[%emt 0:04:07]} Nxd3 {[%emt 0:01:25]} 13. cxd3 {[%emt 0:00:03]} Be7 {[%emt 0:00:41]} 14. Kh1 {[%emt 0:02:54]} O-O {[%emt 0:02:05]} 15. Rfc1 {[%emt 0:01:40]} Qd7 {[%emt 0:00:41]} 16. Be3 {[%emt 0:00:22]} Rfc8 {[%emt 0:02:19]} 17. Rab1 {[%emt 0:17:08]} Rc7 {[%emt 0:05:38]} 18. b5 {[%emt 0:13:00]} d5 {[%emt 0:19:21]} 19. e5 {[%emt 0:05:12]} Ne8 {[%emt 0:00:05]} 20. bxa6 {[%emt 0:05:17]} Rxa6 {[%emt 0:02:39]} 21. Ndb5 {[%emt 0:02:23]} Rc6 {[%emt 0:02:30]} 22. Qd1 {[%emt 0:08:29]} Ba8 {[%emt 0:07:40]} 23. Qb3 {[%emt 0:03:51]} f5 {[%emt 0:07:36]} 24. Nd4 {[%emt 0:03:14]} Rc5 {[%emt 0:07:55]} 25. h3 {[%emt 0:04:41]} Kf7 {[%emt 0:01:56]} 26. Ndb5 {[%emt 0:04:07]} Rc6 {[%emt 0:02:18]} 27. Kh2 {[%emt 0:00:27]} h6 {[%emt 0:01:51]} 28. Nd4 {[%emt 0:01:05]} Rc5 {[%emt 0:01:30]} 29. Ndb5 {[%emt 0:01:56]} Rc6 {[%emt 0:00:06]} 30. Ne2 {[%emt 0:00:08]} Bc5 {[%emt 0:05:58]} 31. Ned4 {[%emt 0:00:36]} Rc8 {[%emt 0:00:14]} 32. Qd1 {[%emt 0:01:09]} g6 {[%emt 0:00:46]} 33. Bg1 {[%emt 0:02:22]} Bc6 {[%emt 0:01:10]} 34. Kh1 {[%emt 0:00:54]} Bb7 {[%emt 0:00:44]} 35. Qb3 {[%emt 0:02:10]} Raa8 {[%emt 0:00:35]} 36. Rc2 {[%emt 0:00:28]} g5 {[%emt 0:03:10]} 37. Rf1 {[%emt 0:01:23]} Kg6 {[%emt 0:00:31]} 38. Re2 {[%emt 0:01:31]} Ng7 {[%emt 0:01:26]} 39. Kh2 {[%emt 0:01:36]} Bc6 {[%emt 0:02:32]} 40. Rc2 {[%emt 0:00:00]} Bb7 {[%emt 0:00:00]} 41. Re2 {[%emt 0:08:28]} Rf8 {[%emt 0:05:10]} 42. g3 {[%emt 0:03:02]} Kh7 {[%emt 0:02:30]} 43. Ra2 {[%emt 0:00:03]} Rg8 {[%emt 0:00:50]} 44. Nd6 {[%emt 0:02:04]} gxf4 {[%emt 0:02:34]} 45. gxf4 {[%emt 0:00:03]} Bxd6 {[%emt 0:00:59]} 46. exd6 {[%emt 0:00:04]} Qxd6 {[%emt 0:00:24]} 47. Nb5 {[%emt 0:00:08]} Qb8 {[%emt 0:01:26]} 48. Bd4 {[%emt 0:00:18]} Nh5 {[%emt 0:06:10]} 49. Rc2 {[%emt 0:01:06]} Ba6 {[%emt 0:02:24]} 50. Rc7+ {[%emt 0:00:41]} Ng7 {[%emt 0:00:14]} 51. Rg1 {[%emt 0:00:19]} Ra7 {[%emt 0:00:46]} 52. Be5 {[%emt 0:10:35]} Rxc7 {[%emt 0:00:57]} 53. Nxc7 {[%emt 0:00:05]} Qa7 {[%emt 0:03:32]} 54. Qb4 {[%emt 0:01:29]} b5 {[%emt 0:01:57]} 55. d4 {[%emt 0:00:08]} 1-0

[Event "ROU-ch Women 2019"]
[Site "Olanesti"]
[Date "2019.03.10"]
[Round "9.16"]
[White "Lehaci, Miruna-Daria"]
[Black "Aciu, Malina-Andreea"]
[Result "1-0"]
[ECO "B90"]
[WhiteElo "2052"]
[BlackElo "1980"]
[Annotator "NA"]
[PlyCount "85"]
[EventDate "2019.03.02"]
[EventType "swiss"]
[EventCountry "ROU"]
[SourceTitle "playchess.com"]
[Source "ChessBase"]
[SourceQuality "1"]
[TimeControl "40/5400+30:1800+30"]

1. e4 {[%emt 0:00:00]} c5 {[%emt 0:02:13]} 2. Nf3 {[%emt 0:00:00]} d6 {[%emt 0:00:11]} 3. d4 {[%emt 0:00:00]} cxd4 {[%emt 0:00:08]} 4. Nxd4 {[%emt 0:00:00]} Nf6 {[%emt 0:00:08]} 5. Nc3 {[%emt 0:00:00]} a6 {[%emt 0:00:04]} 6. Be3 {[%emt 0:00:00]} Ng4 {[%emt 0:00:05]} 7. Bg5 {[%emt 0:00:12]} h6 {[%emt 0:00:27]} 8. Bh4 {[%emt 0:00:52]} g5 {[%emt 0:00:06]} 9. Bg3 {[%emt 0:00:37]} Bg7 {[%emt 0:00:08]} 10. Be2 {[%emt 0:00:10]} h5 {[%emt 0:00:18]} 11. Bxg4 {[%emt 0:00:20]} Bxg4 {[%emt 0:00:24]} 12. f3 {[%emt 0:00:09]} Bd7 {[%emt 0:03:13]} 13. O-O {[%emt 0:09:37]} Nc6 {[%emt 0:05:47] LiveBook: 3 Games} 14. Bf2 {[%emt 0:03:08]} Ne5 {[%emt 0:15:12]} 15. Nf5 {[%emt 0:09:10]} ({White should try} 15. Nd5 $14) 15... Bxf5 {[%emt 0:02:24]} 16. exf5 $11 {[%emt 0:00:09]} e6 {[%emt 0:28:56]} 17. Ne4 {[%emt 0:06:48]} d5 {[%emt 0:01:21]} 18. f6 {[%emt 0:05:28]} Bh6 {[%emt 0:05:34]} 19. Nc3 {[%emt 0:00:58]} O-O {[%emt 0:06:29]} 20. Bd4 {[%emt 0:14:06]} Nd7 {[%emt 0:03:31]} 21. f4 {[%emt 0:00:23]} g4 {[%emt 0:01:10]} 22. Qe1 {[%emt 0:01:31]} Nxf6 {[%emt 0:03:24]} 23. Qe5 {[%emt 0:00:22]} Bg7 {[%emt 0:00:57]} 24. Rad1 {[%emt 0:00:26]} Rc8 {[%emt 0:02:30]} 25. Qg5 {[%emt 0:03:20]} Kh7 {[%emt 0:10:23]} 26. Bxf6 {[%emt 0:01:01]} Qxf6 {[%emt 0:00:06]} 27. Qxh5+ {[%emt 0:00:03]} Qh6 {[%emt 0:01:37]} 28. Qxg4 {[%emt 0:00:05]} Bxc3 {[%emt 0:01:31]} 29. bxc3 {[%emt 0:00:31]} Rxc3 {[%emt 0:00:19]} 30. Rd3 {[%emt 0:02:05]} Rxd3 {[%emt 0:00:15]} 31. cxd3 {[%emt 0:00:03]} Rg8 {[%emt 0:01:14]} 32. Qe2 {[%emt 0:00:19]} Qf6 {[%emt 0:01:06]} 33. f5 {[%emt 0:01:43]} exf5 {[%emt 0:02:19]} 34. Qh5+ {[%emt 0:00:39]} Kg7 {[%emt 0:00:06]} 35. Rxf5 {[%emt 0:01:02]} Qd4+ {[%emt 0:00:37]} 36. Rf2 {[%emt 0:00:04]} f6 {[%emt 0:00:33]} 37. g3 {[%emt 0:03:37]} Rf8 {[%emt 0:01:29]} 38. Qf5 {[%emt 0:01:25]} b5 {[%emt 0:01:04]} 39. h4 {[%emt 0:00:40]} Rh8 {[%emt 0:01:09]} 40. h5 {[%emt 0:00:00]} Rh6 {[%emt 0:00:00]} 41. Kg2 {[%emt 0:06:47]} Qc5 42. Qd7+ {[%emt 0:01:44]} Kg8 {[%emt 0:07:18]} 43. Re2 {[%emt 0:00:10]} 1-0